Cogmind - Beta 16 @@@ ROGUE MODE // 2025.11.18 @ 01:13:29 Player: guru-sr Result: Destroyed by BL-R73(R) with Subdweller Laser Performance ------------- Evolutions (0) 0 Regions Visited (2) 400 Robots Destroyed (33) 165 Value Destroyed (673) 673 Prototype IDs (0) 0 Alien Tech Used (0) 0 Bonus (0) 0 TOTAL SCORE: 1238 Bonus ------- None Cogmind --------- Core Integrity 0/250 Matter 290/300 Energy 220/250 System Corruption 0% Temperature Cool (6) Movement Rolling (150) Ox4 Location -10/Subcaves Parts ------- > --- POWER (1) -------- Ion Engine > --- PROPULSION (2) --- Light Treads Subdweller Monowheel > --- UTILITY (2) ------ Huge Storage Unit > --- WEAPON (2) ------- Subdweller Machine Gun Mining Laser > --- INVENTORY (25) --- Light Nuclear Core Light Treads Compact Wheel Subdweller Monowheel Improved Heat Sink Large Battery (200) Medium Matter Pod (100) Structural Scanner Improved Terrain Scanner Seismic Detector Transport Network Coupler Hacking Suite Beam Rifle Beam Cannon Assault Rifle Assault Rifle Assault Rifle Assault Rifle Assault Rifle Subdweller Machine Gun Mini Grenade Launcher Mini Grenade Launcher Datajack Peak State ------------ > --- POWER ------------ Ion Engine > --- PROPULSION ------- Light Treads Subdweller Monowheel > --- UTILITY ---------- Huge Storage Unit Subdweller Optics > --- WEAPON ----------- Beam Cannon Assault Rifle > --- INVENTORY -------- Ion Engine Light Nuclear Core Light Treads Light Treads Wheel Compact Wheel Improved Heat Sink Large Battery Medium Matter Pod Structural Scanner Improved Terrain Scanner Seismic Detector Transport Network Coupler Hacking Suite Beam Cannon Assault Rifle Assault Rifle Assault Rifle Assault Rifle Assault Rifle Mini Grenade Launcher Mini Grenade Launcher Datajack Mining Laser [Rating: 12] Favorites ----------- Power Ion Engine Engine Ion Engine Propulsion Light Treads Treads Light Treads Wheel Subdweller Monowheel Utility Huge Storage Unit Device Heat Sink Storage Huge Storage Unit Weapon Assault Rifle Energy Cannon Beam Cannon Ballistic Gun Assault Rifle Special Weapon Mining Laser Build | -11 -10 -10 ------- Run | Yrd Mat Sub Slots Evolved . | . . . Power . | . . . Propulsion . | . . . Utility . | . . . Weapon . | . . . Parts Attached 28 | 6 15 7 Power 5 | 1 3 1 Engine 5 | 1 3 1 Core . | . . . Reactor . | . . . Propulsion 9 | 2 3 4 Treads 4 | 2 1 1 Leg . | . . . Wheel 5 | . 2 3 Hover . | . . . Flight . | . . . Utility 6 | 1 4 1 Device 4 | . 3 1 Storage 2 | 1 1 . Processor . | . . . Hackware . | . . . Protection . | . . . Artifact . | . . . Weapon 8 | 2 5 1 Energy Gun . | . . . Energy Cannon 2 | . 2 . Ballistic Gun 4 | 2 1 1 Ballistic Cannon . | . . . Launcher . | . . . Special Weapon 2 | . 2 . Impact Weapon . | . . . Slashing Weapon . | . . . Piercing Weapon . | . . . Special Melee Weapon . | . . . Unidentified Prototypes . | . . . Parts Lost 6 | . 1 5 Power 1 | . . 1 Propulsion 2 | . . 2 Utility 2 | . 1 1 Weapon 1 | . . 1 Highest Loss Streak 1 | . 1 1 To Critical Strikes . | . . . Average Backups 16 | 3 12 23 Power 1 | . 1 1 Propulsion 2 | . 1 4 Utility 5 | 1 4 8 Weapon 6 | 1 4 9 Tool/Special . | . . . Unused Backups 21 | . 6 15 Power 1 | . . 1 Propulsion 4 | . 2 2 Utility 8 | . 1 7 Weapon 7 | . 3 4 Tool/Special 1 | . . 1 Average Slot Usage (%) 93 | . 97 88 Engine 14 | . 14 14 Treads 17 | . 20 14 Wheel 10 | . 7 14 Device 8 | . 11 3 Storage 14 | . 14 14 Energy Cannon 11 | . 11 12 Ballistic Gun 14 | . 14 14 Special Weapon 2 | . 2 1 Peak Build Rating 12 | 6 10 12 Average Rating 9 | 5 8 10 On Entrance 5 | . 6 10 Avg Prop Armor Cover (%) 12 | . 11 12 Naked Turns . | . . . Heaviest Build 92 | 13 91 92 Greatest Support 40 | 40 40 20 Greatest Overweight (x) 9 | 3 9 5 Average Overweight (x) 4 | . 4 4 Largest Inventory Capacity 25 | 8 25 25 Average Capacity 20 | 7 18 25 Most Carried 25 | 6 25 25 Average Carried 16 | 4 12 23 Final Capacity 25 | 8 25 25 Final Carried 25 | 6 25 23 Class Distribution -------------------- 93% | Mutant 6% | Scavenger-Mutant Dominant Class ---------------- Mutant | -10/Materials Mutant | -10/Subcaves Resources | -11 -10 -10 ----------- Run | Yrd Mat Sub Matter Collected 1075 | 312 592 171 Remotely . | . . . Salvage Created 1103 | 138 706 259 Parts 66 | 10 49 7 Haulers Intercepted 2 | . 2 . Recyclers Shooed . | . . . Parts Field Recycled . | . . . Retrieved Matter . | . . . Parts Self-Destructed 11 | . . 11 Prevented . | . . . Parts Restored . | . . . Kills | -11 -10 -10 ------- Run | Yrd Mat Sub Combat Hostiles Destroyed 20 | . 14 6 Guns 7 | . 2 5 Cannons 13 | . 12 1 Classes Destroyed 11 | 2 7 2 Worker 1 | . 1 . Builder 1 | . 1 . Tunneler 4 | 3 1 . Hauler 2 | . 2 . Recycler 2 | 1 1 . Operator 1 | . 1 . Watcher 2 | . 2 . Swarmer 6 | . 6 . Grunt 10 | . 8 2 Sentry 1 | . . 1 Subdweller 3 | . . 3 Best Kill Streak 4 | 2 4 2 Combat Bots Only 3 | . 3 2 Max Kills in Single Turn 2 | 1 2 1 Gunslinging . | . . . Exploded . | . . . Melee . | . . . Uniques/NPCs Destroyed . | . . . Combat | -11 -10 -10 -------- Run | Yrd Mat Sub Hostile Shots Fired 105 | . 65 40 Missed 28 | . 18 10 Hits 77 | . 47 30 Projectile 77 | . 47 30 Critical Strikes 1 | . . 1 Damage Taken 1200 | . 414 786 Core 267 | . 64 203 Absorbed by Shields . | . . . Core Remaining (%) 100 | 100 . . Volleys Fired 122 | 13 63 46 Largest 2 | 2 2 2 Hottest 120 | 40 120 100 Shots Fired 201 | 26 102 73 Gun 97 | 26 44 27 Cannon 65 | . 38 27 Launcher . | . . . Special 39 | . 20 19 Kinetic 97 | 26 44 27 Thermal 104 | . 58 46 Explosive . | . . . Electromagnetic . | . . . Robot Hit Streak 14 | 10 7 14 Robot Miss Streak 3 | 1 3 1 Penetration Max . | . . . Secondary Targets . | . . . Shots Hit Robots 105 | 16 45 44 Core Hits 41 | 5 26 10 Critical Kills 1 | 1 . . Critical Parts Destroyed . | . . . Critical Strikes 1 | 1 . . Destroy 1 | 1 . . Melee Attacks . | . . . Impact . | . . . Slashing . | . . . Piercing . | . . . Sneak Attacks . | . . . Combat Hostiles . | . . . Follow-up Attacks . | . . . Damage Inflicted 1689 | 187 757 745 Guns 832 | 187 271 374 Cannons 857 | . 486 371 Explosions . | . . . Melee . | . . . Ramming . | . . . Kinetic 832 | 187 271 374 Thermal 857 | . 486 371 Explosive . | . . . Electromagnetic . | . . . Impact . | . . . Slashing . | . . . Piercing . | . . . Highest Corruption . | . . . Average Corruption . | . . . Corruption Purged . | . . . Corruption Blocked . | . . . Overload Shots . | . . . Overflow Damage 1 | . 1 . Projectiles 1 | . 1 . Explosions . | . . . Melee . | . . . Knockbacks . | . . . Impact . | . . . Kinetic . | . . . Secondary . | . . . Self-Inflicted Damage . | . . . Shots . | . . . Rammed . | . . . Targets Rammed . | . . . Kicked . | . . . Crushed . | . . . Highest Temperature 285 | . 66 285 Average Temperature 39 | . 25 169 Received Heat Transfer 554 | . 69 485 Siege Activations . | . . . Martial Activations . | . . . Shielding Activations . | . . . Robots Disrupted . | . . . Combat Hostiles . | . . . Robots Corrupted . | . . . Combat Hostiles . | . . . Parts Fried . | . . . Impact Corruptions . | . . . Robots Melted . | . . . Combat Hostiles . | . . . Parts Melted 2 | . . 2 Heat Transferred 1776 | . 999 777 Parts Sabotaged . | . . . Parts Stolen . | . . . Parts Stripped . | . . . Power Chain Reactions . | . . . Alert | -11 -10 -10 ------- Run | Yrd Mat Sub Maximum Alert Level . | . . . Low Security (%) 100 | 100 100 . Level 1 . | . . . Level 2 . | . . . Level 3 . | . . . Level 4 . | . . . Level 5 . | . . . High Security . | . . . Max Security . | . . . Peak Influence 192 | 10 192 . Initial . | . . . Average 66 | . 72 . Influence Increases 651 | 20 561 70 Destroy 0b10 Robot/C 340 | . 280 60 Destroy 0b10 Robot/NC 60 | 20 40 . Destroy Leader 78 | . 68 10 Successful Hack 29 | . 29 . Select Force Hacks 60 | . 60 . Destroy Structure 24 | . 24 . Lose Combat Pursuer 60 | . 60 . Influence Decreases 651 | 20 445 186 Entered New Map 56 | . . 56 Time Decay 581 | 20 445 116 Lost Part 14 | . . 14 Squads Dispatched 3 | . 3 . Investigation 3 | . 3 . Extermination . | . . . Reinforcement . | . . . Assault . | . . . Garrison . | . . . Intercept . | . . . Searches Triggered . | . . . Construction Impeded . | . . . Haulers Reinforced . | . . . Active Scanning Responses . | . . . Cargo Convoy Interrupts . | . . . Stealth | -11 -10 -10 --------- Run | Yrd Mat Sub Distress Signals . | . . . Communications Jammed . | . . . Distress Signals . | . . . Times Spotted 33 | . 24 9 Peak Tracking Total 5 | . 5 2 Tactical Retreats 2 | . 2 . Traps | -11 -10 -10 ------- Run | Yrd Mat Sub Traps Triggered 7 | . 2 5 Indirectly . | . . . Trap Hack Attempts . | . . . Triggered . | . . . Disarmed . | . . . Reprogrammed . | . . . Reused 1 | . . 1 Traps Extracted . | . . . Installed 1 | . . 1 Triggered 1 | . . 1 Most Traps Carried 1 | . . 1 Machines | -11 -10 -10 ---------- Run | Yrd Mat Sub Machines Disabled . | . . . Max in Single Turn . | . . . Machines Repaired . | . . . Machines Dismantled . | . . . Machines Sabotaged . | . . . Overloaded Fab Kills . | . . . Hacking | -11 -10 -10 --------- Run | Yrd Mat Sub Machines Accessed 9 | . 9 . Terminals 7 | . 7 . Fabricators . | . . . Repair Stations . | . . . Recycling Units 2 | . 2 . Scanalyzers . | . . . Garrison Access . | . . . Total Hacks 27 | . 27 . Successful 16 | . 16 . Failed 10 | . 10 . Catastrophic . | . . . Database Lockouts 1 | . 1 . Manual 22 | . 22 . Terminals 21 | . 21 . Fabricators . | . . . Repair Stations . | . . . Recycling Units 6 | . 6 . Scanalyzers . | . . . Garrison Access . | . . . Terminal Hacks 5 | . 5 . Robot Analysis 3 | . 3 . Terminal Index 1 | . 1 . Registered Components 1 | . 1 . Fabricator Hacks . | . . . Repair Station Hacks . | . . . Recycling Unit Hacks 3 | . 3 . Report Inventory 2 | . 2 . Retrieve Components 1 | . 1 . Scanalyzer . | . . . Garrison Access Hacks . | . . . Unauthorized Hacks 8 | . 8 . Terminals 6 | . 6 . Assimilate 2 | . 2 . Botnet 2 | . 2 . Operators 1 | . 1 . Skim 1 | . 1 . Fabricators . | . . . Repair Stations . | . . . Recycling Units 2 | . 2 . Tunnel 2 | . 2 . Scanalyzers . | . . . Garrison Access . | . . . Data Cores Recovered . | . . . Used . | . . . Hacking Detections 8 | . 8 . Full Trace Events . | . . . Feedback Events . | . . . Feedback Blocked . | . . . Robot Schematics Acquired . | . . . Robots Built . | . . . Authchips . | . . . Time . | . . . Total Robot Build Rating . | . . . Part Schematics Acquired . | . . . Parts Built . | . . . Authchips . | . . . Time . | . . . Total Part Build Rating . | . . . Part Studies Acquired . | . . . Parts Repaired . | . . . Time . | . . . Parts Recycled . | . . . Recycled Matter . | . . . Retrieved Matter . | . . . Retrieved Components 9 | . 9 . Parts Scanalyzed . | . . . Part Schematics Acquired . | . . . Parts Damaged . | . . . Bothacking | -11 -10 -10 ------------ Run | Yrd Mat Sub Used RIF Installer . | . . . Robots Hacked . | . . . Non-combat . | . . . Combat . | . . . Robot Hacks Applied . | . . . Relay Couplers Released . | . . . Fabnet Peak Effective % . | . . . Robots Rewired . | . . . Allies Hacked . | . . . Hacks Repelled . | . . . Allies | -11 -10 -10 -------- Run | Yrd Mat Sub Total Allies 1 | . 1 . Largest Group 1 | . 1 . Highest-Rated Group 10 | . 10 . Highest-Rated Ally 10 | . 10 . Total Orders 1 | . 1 . STAY 1 | . 1 . Ally Attacks . | . . . Total Damage . | . . . Kills . | . . . Allies Corrupted . | . . . Allies Melted . | . . . Intel | -11 -10 -10 ------- Run | Yrd Mat Sub Active Infowar (turns) 603 | . 379 224 Optics 139 | . . 139 Structural 464 | . 379 85 Robot Analysis Total 3 | . 3 . Derelict Logs Recovered 2 | . . 2 Drone Launches . | . . . Drone Recoveries . | . . . Exploration | -11 -10 -10 ------------- Run | Yrd Mat Sub Turns Passed 3388 | 177 1937 1274 Spaces Moved 1608 | 76 826 706 Core 11 | 11 . . Treads 443 | 65 378 . Legs . | . . . Wheels 1154 | . 448 706 Hover . | . . . Flight . | . . . Fastest Speed 50 | 50 160 150 Average Speed 172 | 155 190 152 Slowest Speed 320 | 200 320 175 Overloaded Moves . | . . . Propulsion Burnouts . | . . . Robots Hopped . | . . . Potential Cave-ins . | . . . Cave-ins Triggered . | . . . Exploration Rate (%) 47 | 5 100 37 Regions Visited 2 Branch Regions 1 Pre-discovered Areas 4 | . 2 2 Known Exits Taken . | . . . Unknown Exits Taken 2 | 1 1 . Scrap Searched . | . . . Spaces Dug 30 | . 20 10 Terrain Destroyed 30 | . 20 10 Melee . | . . . Projectile 30 | . 20 10 AOE . | . . . Terrain Rammed . | . . . Walls Destroyed . | . . . Machines Disabled . | . . . Actions | -11 -10 -10 --------- Run | Yrd Mat Sub Total 1944 | 109 1044 791 Wait 101 | 9 78 14 Move 1606 | 75 825 706 Hop . | . . . Pick Up 40 | 6 29 5 Fast Attach 12 | 6 5 1 Attach 6 | . 1 5 Detach 1 | . 1 . Swap 33 | . 26 7 Drop 22 | . 16 6 Fire 122 | 13 63 46 Melee . | . . . Ram . | . . . Kick . | . . . Crush . | . . . Escape Stasis . | . . . Rewire . | . . . Trap 1 | . . 1 Miscellaneous . | . . . Route ------- -11/Scrapyard -10/Materials (discovered 6 exits: [*Mat x3] / [*Min x2] / [*Sub]) -10/Subcaves (discovered 2 exits: [*Mat] / [*Scr]) History --------- Turn | Location | Event 18 | -11/Scrapyard | Discovered new exit (range 16) 178 | -11/Scrapyard | Entered Materials 317 | -10/Materials | Build established: Mutant 738 | -10/Materials | Central database locked down 882 | -10/Materials | Discovered new exit (range 6) 892 | -10/Materials | Discovered new exit (range 13) 1140 | -10/Materials | Discovered new exit (range 12) 1548 | -10/Materials | Discovered new exit (range 16) 1674 | -10/Materials | Discovered new exit (range 7) 2059 | -10/Materials | Discovered new exit (range 9) 2115 | -10/Materials | Entered Subcaves 2116 | -10/Subcaves | Approached by a straggling Scientist 2254 | -10/Subcaves | Discovered new exit (range 12) 2284 | -10/Subcaves | Core integrity fell below 50% 2469 | -10/Subcaves | Learned Materials garrison access intel 2504 | -10/Subcaves | Scientist uncovered a shortcut to Scraptown 2593 | -10/Subcaves | Learned location of Zion (-7) 2593 | -10/Subcaves | Met a Zionite searching for "candidates" 2727 | -10/Subcaves | Shifting Twisted Machinery released Piercing Trap 2772 | -10/Subcaves | Shifting Twisted Machinery released Sub. Machine Gun 2803 | -10/Subcaves | Core integrity fell below 20% 3388 | -10/Subcaves | Ambushed by Subdweller buried in earth 3389 | -10/Subcaves | Destroyed by BL-R73(R) with Subdweller Laser Last Messages --------------- 02812_ Heat Sink fries itself beyond repair. 02814_ Acquired Beam Rifle. 02816_ Heat Sink fries itself beyond repair. 02850_ Lgt. Treads destroyed. 02862_ G-47 Trooper destroyed. 02873_ Lgt. Nuclear Core fries itself beyond repair. 02874_ G-34 Mercenary destroyed. 02875_ Aluminum Leg fries itself beyond repair. 02877_ Acquired 20 matter. 03130_ Sub. Monowheel shoots sparks and powers down. 03132_ Dropped Broken Sub. Monowheel. 03145_ Subatomizers dissect the Broken Sub. Monowheel. 03146_ IU-77R(R) destroyed. 03152_ Acquired 16 matter. 03155_ Acquired Sub. Machine Gun. 03156_ Subatomizers dissect the Broken Sub. Monowheel. 03177_ Acquired derelict log, extracted data. World map updated: -10/Materials. 03325_ The unstable cave ceiling collapses. 03389_ BL-R73(R): "ARGHSUB!" Map ----- +----------------------------------------------------+ | ????????????### #???????????????# # | | ??????????????# #???????????????# # | | ??????????????# ##???????????????## # | | ??????????????### ####?????????????????## # | | ????????????????# ###?????????????????????# | | ???????????????## ###???????????????????????#### | | ??????????###### ##??????????????????????????## | | ?????????## #??????????????????????????# | | # # ## % #??????????????????????????# | | ?# & = ##?????????????????????????# | | ?# ### ###???????????????????????#### | | ?# # # ### ##?????????????????????????# | | ??? " #####?????????????????????# | | " """ #?????????????????????? | | """"########## #?????????????????????? | | """??#### ##?????????????????????? | | ?""??#""" ###?????????????????????? | | ""#??????# # #?????????????????????? | | #???????????# # # #??????????????????????? | | ???????????##" ##### ##?????????????????????? | | ???????##### ##?## ## #?????????????????????? | | ??????##"##"" #??### ##?????????????????????? | | ??????#""""" "####????# ##?????????????????????? | | ??????# "##???????# #?????????????????????? | | ??????# ##????????## #?????????????????????? | | ??????## ##?????????# @##?????????????????????? | | ???????### #????????# #R #??????????????????????? | | ????????## #####????######??????????????????????? | | ????????#""" ""######## #???????????????????????? | | ????????## ### ## ## #???????????????????????? | | ?????????###?# # #???????????????????????? | | ?????????????## ## ####???????????????????????? | | ??????????????#########??????????????????????????? | | ?????????????????????????????????????????????????? | | ?????????????????????????????????????????????????? | | ?????????????????????????????????????????????????? | | ?????????????????????????????????????????????????? | | ?????????????????????????????????????????????????? | | ?????????????????????????????????????????????????? | | ?????????????????????????????????????????????????? | | ?????????????????????????????????????????????????? | | ?????????????????????????????????????????????????? | | ?????????????????????????????????????????????????? | | ?????????????????????????????????????????????????? | | ?????????????????????????????????????????????????? | | ?????????????????????????????????????????????????? | | ?????????????????????????????????????????????????? | | ?????????????????????????????????????????????????? | | ?????????????????????????????????????????????????? | | | +----------------------------------------------------+ Best States ------------- Heat Dissipation 35 Energy Generation 10 Energy Capacity 250 Matter Stores 300 Matter Capacity 300 Sight Range 21 Terrain Scan Density 10 Evasion (%) 40 Recoil Reduction 2 Item Schematics ----------------- None Robot Schematics ------------------ None Fabricated ------------ Nothing Repaired ---------- Nothing Studied --------- None Alien Tech Used ----------------- None Achievements -------------- Nice Directions, Buddy Challenges ------------ None Game ------ Seed DamperModifiedShovel Manual? 0 Play Time 00:34:34 Cumulative 37.2 hours Start 2025.11.18 @ 00:39:26 End 2025.11.18 @ 01:13:29 Sessions 1 Manual Loads 0 Difficulty Rogue Special Mode None Game No. 18 Rogue 18 Adventurer 0 Explorer 0 Win Type - Total 1 Types 1/0/0/0/0/0/0/0/0/0 Lore% 21 Gallery% 26 Achievement% 33 Wizard Run 0 Options --------- Layout 0 ASCII 0 Keyboard 0 Movement Mouse Keybinds 0 Fullscreen 1 Font 18/SmallcapsGlow Map View 76x50 Zoom Use 0% Tactical HUD 1 Map Filters NONE Filters NONE Steam 1 RUN: 09ae6269-a0eb-4119-a6a1-218f7ee334af